bitfinex/quotes_ETHUSD_20241106
["timestamp","ask_amount","ask_price","bid_price","bid_amount"]
[1730866590551,0.8565788,2591.1,2590.6,3.86002]
[1730866590761,4.6197,2590.8,2590.4,4.57962544]
[1730866590961,4.61968,2590.8,2590.0,8.44061544]
[1730866591109,3.86019,2590.6,2590.0,8.44061544]
[1730866591454,3.8602,2590.6,2590.0,4.57962544]
[1730866591654,3.85996,2590.7,2590.1,0.84406354]
[1730866591857,3.85996,2590.7,2590.1,3.86073]
[1730866592162,0.7598,2590.8,2590.4,4.57962544]
[1730866592958,3.86012,2590.6,2590.1,3.86076]
[1730866593115,3.86012,2590.6,2590.0,9.24352544]
[1730866593550,4.61968,2590.8,2590.0,9.24345544]
[1730866593753,3.86026,2590.5,2590.0,9.24343544]
[1730866593941,3.86026,2590.5,2590.0,4.57962544]
[1730866594146,3.86056,2590.3,2590.0,4.57962544]
[1730866594342,0.7598,2590.8,2590.1,3.86085]
[1730866594559,0.7598,2590.8,2590.4,8.43999544]
[1730866595279,4.61924,2591.1,2590.5,3.86022]
[1730866595426,8.4787,2591.1,2590.5,3.86022]
[1730866595802,4.61924,2591.1,2590.6,3.8601]
[1730866595973,0.7598,2591.4,2590.8,4.57962544]
[1730866596186,0.41068823,2591.6,2591.2,8.43882544]
[1730866596187,0.40068823,2591.6,2591.2,8.43882544]
[1730866596483,0.7598,2591.7,2591.2,4.57962544]
[1730866596643,0.7598,2591.7,2591.2,8.43877544]
[1730866596968,0.7598,2591.7,2591.2,8.43882544]
[1730866597125,0.7598,2592.0,2591.3,3.85894]
[1730866597331,4.61793,2592.0,2591.4,0.8029]
[1730866597571,4.61743,2592.3,2591.6,4.57962544]
[1730866597894,0.7598,2593.1,2592.1,0.8029]
[1730866598034,4.61628,2593.1,2592.7,4.57962544]
[1730866598880,3.85635,2593.2,2592.7,4.57962544]
[1730866599035,0.771254,2593.1,2592.7,4.57962544]
[1730866599235,3.85625,2593.2,2592.7,4.57962544]
[1730866599459,3.85619,2593.3,2592.7,8.43650544]
[1730866599683,0.7598,2593.4,2592.7,8.43648544]
[1730866599891,0.7598,2593.4,2593.1,4.57962544]
[1730866600214,0.7598,2593.4,2592.8,4.6596]
[1730866600215,4.61586,2593.4,2592.8,4.6596]
[1730866600494,4.61576,2593.4,2592.8,4.6596]
[1730866600648,0.7598,2593.4,2592.8,4.6596]
[1730866600986,4.61575,2593.4,2592.8,0.8029]
[1730866601300,4.61575,2593.4,2592.7,4.57962544]
[1730866601301,3.85638,2593.1,2592.7,4.57962544]
[1730866601785,3.85656,2593.0,2592.7,4.57962544]
[1730866601998,4.61584,2593.4,2592.7,4.57962544]
[1730866602162,0.7598,2593.4,2592.8,3.85673]
[1730866602345,0.7598,2593.4,2592.7,5.42329498]
[1730866602545,3.85619,2593.3,2592.7,4.57962544]
[1730866602776,0.7598,2593.4,2592.7,8.43646544]
[1730866603087,0.80188909,2593.4,2592.7,8.43646544]
[1730866603400,3.8562,2593.3,2592.7,4.57962544]
[1730866603552,3.85638,2593.1,2592.7,4.57962544]
[1730866603759,3.85638,2593.1,2592.4,0.8029]
[1730866603760,4.242018,2593.1,2592.4,0.8029]
[1730866604093,3.85663,2593.0,2592.4,0.8029]
[1730866604301,3.8567,2592.9,2592.4,0.8029]
[1730866604590,7.75942391,2592.9,2592.4,0.8029]
[1730866604799,3.8567,2592.9,2592.3,4.57962544]
[1730866604954,4.24251,2592.8,2592.3,4.57962544]
[1730866605150,4.24251,2592.8,2592.1,0.7774]
[1730866605151,3.85709,2592.7,2592.1,0.7774]
[1730866605655,3.85715,2592.6,2592.1,0.7774]
[1730866605965,3.85754,2592.4,2591.8,0.7774]
[1730866606284,3.85754,2592.4,2591.8,4.63567]
[1730866606794,3.85724,2592.6,2591.9,3.85817]
[1730866606994,0.385724,2592.5,2591.9,3.85806]
[1730866607221,0.385724,2592.5,2591.3,3.85903]
[1730866607222,3.85819,2591.9,2591.3,3.85903]
[1730866607515,3.85835,2591.8,2591.2,3.8592]
[1730866607898,3.85857,2591.7,2591.0,9.21642544]
[1730866608216,3.85848,2591.7,2591.0,10.13906798]
[1730866608367,3.85873,2591.6,2591.0,9.21642544]
[1730866608571,4.61853,2591.6,2590.8,3.85976]
[1730866608771,3.85902,2591.4,2590.7,0.7774]
[1730866609012,0.7598,2591.6,2590.6,8.43964544]
[1730866609181,3.85938,2591.1,2590.6,8.43964544]
[1730866609383,3.85915,2591.3,2590.7,3.85986]
[1730866609613,3.85895,2591.4,2590.8,3.85972]
[1730866609910,0.7598,2591.9,2591.1,4.63668]
[1730866610212,4.61797,2591.9,2591.3,3.85898]
[1730866610373,7.7169,2591.8,2591.1,4.63668]
[1730866610579,3.85845,2591.8,2591.1,4.63668]
[1730866610904,3.8587,2591.6,2591.1,0.7774]
[1730866611275,3.85877,2591.5,2590.9,3.85956]
[1730866611773,3.8591,2591.3,2590.8,0.7774]
[1730866611975,3.85921,2591.2,2590.8,0.7774]
[1730866612178,3.8591,2591.3,2590.5,0.7774]
[1730866612417,3.8591,2591.3,2590.7,3.85981]
[1730866612418,3.85928,2591.2,2590.7,3.85981]
[1730866612779,3.8591,2591.3,2590.7,3.85981]
[1730866612975,7.7183,2591.3,2590.7,4.709548]
[1730866613177,3.8591,2591.3,2590.7,4.709548]
[1730866613611,0.7598,2591.4,2590.9,3.85964]
[1730866613813,8.4769,2591.7,2590.9,3.85966]
[1730866613985,3.85832,2591.8,2591.2,7.71824]
[1730866614319,3.85825,2591.9,2591.3,3.85906]
[1730866614524,3.85825,2591.9,2591.4,3.8589]
[1730866614739,3.85825,2591.9,2591.2,5.0966153]
[1730866615239,3.85841,2591.8,2591.2,5.0966153]
[1730866615597,3.85845,2591.8,2591.2,5.0966153]
[1730866615809,3.85825,2591.9,2591.3,3.85897]
[1730866616012,3.85825,2591.9,2591.3,4.75452853]
[1730866616207,3.85794,2592.1,2591.3,4.75452853]
[1730866616208,3.85794,2592.1,2591.5,3.85872]
[1730866616647,3.85762,2592.3,2591.6,3.85858]
[1730866616804,3.85762,2592.3,2591.8,3.85831]
[1730866617206,3.85746,2592.4,2591.8,7.71654]
[1730866617395,4.61687,2592.7,2592.1,3.85778]
[1730866617595,3.85707,2592.7,2592.1,3.85778]
[1730866618139,3.85707,2592.7,2592.2,3.85763]
[1730866618551,3.85676,2592.9,2592.3,3.85754]
[1730866618832,3.85676,2592.9,2592.4,3.8574]
[1730866619043,3.85647,2593.1,2592.3,3.85754]
[1730866619338,3.85655,2593.0,2592.5,3.85728]
[1730866619911,3.85647,2593.1,2592.5,3.85728]
[1730866620116,3.85643,2593.1,2592.5,3.85728]
[1730866620318,3.85643,2593.1,2592.6,0.7634]
[1730866620656,4.25896881,2593.4,2592.8,3.85682]
[1730866620837,3.8561,2593.3,2592.7,7.71377]
[1730866621038,3.85662,2593.0,2592.6,0.7634]
[1730866621338,0.8892454,2593.4,2592.3,4.25094867]
[1730866621339,3.85724,2592.6,2592.3,0.7634]
[1730866621539,3.85695,2592.8,2592.3,0.7634]
[1730866622060,3.85743,2592.4,2591.9,0.7634]
[1730866622267,3.85774,2592.2,2591.9,0.7634]
[1730866622583,0.385743,2592.3,2591.5,0.7634]
[1730866622584,3.85818,2591.9,2591.5,0.7634]
[1730866622741,4.243443,2592.3,2591.6,3.85851]
[1730866623070,3.86657,2593.0,2591.6,3.85851]
[1730866623071,3.85669,2592.9,2592.3,3.85747]
[1730866623217,3.8568,2592.9,2592.2,8.43724544]
[1730866623421,3.85694,2592.8,2592.2,4.70134454]
[1730866623623,3.85702,2592.7,2592.2,0.84372454]
[1730866623822,3.85661,2593.0,2592.3,3.85748]
[1730866624127,3.85685,2592.8,2592.2,8.55905454]
[1730866624469,3.85706,2592.7,2592.1,3.85785]
[1730866624617,3.85685,2592.8,2592.0,3.85793]
[1730866624618,3.85713,2592.6,2592.0,3.85793]
[1730866624818,3.85713,2592.6,2592.0,7.71586]
[1730866625059,3.85685,2592.8,2592.1,3.85781]
[1730866625359,3.85685,2592.8,2592.2,3.85771]
[1730866625560,3.85685,2592.8,2592.3,0.39348597]
[1730866625731,3.85699,2592.7,2592.2,3.85771]
[1730866625933,3.85689,2592.8,2592.2,7.71533]
[1730866626270,3.85668,2592.9,2592.3,3.85755]
[1730866626771,3.85624,2593.2,2592.5,0.7634]
[1730866626920,0.40294881,2593.4,2592.8,3.85682]
[1730866627120,0.40294881,2593.4,2592.9,3.85656]
[1730866627523,0.40294881,2593.4,2592.7,3.8569]
[1730866627737,3.85612,2593.3,2592.7,3.8569]
[1730866627924,0.40294881,2593.4,2592.8,3.85682]
[1730866628119,0.40294881,2593.4,2592.9,3.8566]
[1730866628372,0.0420971,2593.3,2592.7,3.8569]
[1730866628533,0.0420971,2593.3,2592.7,4.77689254]
[1730866628720,3.8982171,2593.3,2592.7,4.77689254]
[1730866628923,3.85628,2593.2,2592.7,0.91999254]
[1730866629121,0.05049901,2593.2,2592.5,0.7634]
[1730866629321,3.85679,2592.9,2592.5,0.7634]
[1730866629546,3.90729831,2592.9,2592.5,0.7634]
[1730866629762,3.85684,2592.8,2592.2,8.43724544]
[1730866629952,3.85703,2592.7,2592.1,3.85784]
[1730866630134,3.85722,2592.6,2592.0,3.85795]
[1730866630345,3.85688,2592.8,2591.9,0.7634]
[1730866630551,3.85688,2592.8,2592.1,3.85779]
[1730866630745,3.85714,2592.6,2592.0,7.71589]
[1730866630960,3.85688,2592.8,2592.1,3.85778]
[1730866631145,3.85699,2592.7,2592.0,3.85793]
[1730866631478,3.85714,2592.6,2592.0,3.85793]
[1730866631781,7.71324,2593.0,2592.4,3.85741]
[1730866631979,8.560544,2593.0,2592.4,3.85741]
[1730866632139,3.85673,2592.9,2592.4,3.85741]
[1730866632495,0.7598,2593.1,2592.3,3.85757]
[1730866632646,3.85641,2593.1,2592.5,3.85721]
[1730866632846,3.85654,2593.0,2592.4,3.85734]
[1730866633037,3.85654,2593.0,2592.4,4.77737654]
[1730866633243,3.85632,2593.2,2592.6,3.85712]
[1730866633439,3.85632,2593.2,2592.4,4.77737654]
[1730866633644,7.71324,2593.0,2592.4,4.77737654]
[1730866633888,0.40294881,2593.4,2592.3,0.7634]
[1730866633889,0.55,2593.3,2592.3,0.7634]
[1730866634194,3.85706,2592.7,2592.3,0.7634]
[1730866634483,3.85737,2592.5,2591.9,4.62156]
[1730866634668,3.85737,2592.5,2591.9,0.7634]
[1730866635072,4.61707,2592.6,2592.0,3.858]
[1730866635573,3.85729,2592.5,2592.0,7.716]
[1730866635772,3.85729,2592.5,2591.9,0.7634]
[1730866636658,3.85782,2592.2,2591.9,0.7634]
[1730866636846,3.85799,2592.1,2591.4,8.43845544]
[1730866637044,3.85766,2592.3,2591.6,3.85852]
[1730866637258,3.85766,2592.3,2591.7,3.85844]
[1730866637459,3.85766,2592.3,2591.6,3.85852]
[1730866637659,3.85772,2592.2,2591.5,0.7634]
[1730866637868,3.85742,2592.4,2591.8,8.43792544]
[1730866638195,3.85742,2592.4,2591.8,12.29614544]
[1730866638418,3.85742,2592.4,2591.8,8.43784544]
[1730866638800,3.85728,2592.5,2591.8,8.43784544]
[1730866639008,4.704696,2592.5,2591.8,8.43784544]
[1730866639165,3.85762,2592.3,2591.8,4.57962544]
[1730866639570,3.85686,2592.8,2591.1,3.8593]
[1730866639571,0.7598,2592.9,2592.2,4.57962544]
[1730866639772,0.7598,2592.9,2591.9,0.7634]
[1730866639773,4.25892881,2593.4,2592.6,8.43663544]
[1730866639970,0.40294881,2593.4,2592.7,0.84053206]
[1730866640170,0.40294881,2593.4,2592.7,0.7634]
[1730866640171,4.2570125,2593.3,2592.7,0.7634]
[1730866640701,3.85618,2593.3,2592.7,0.7634]
[1730866641560,3.85618,2593.3,2592.7,0.76207668]
[1730866641767,7.71241,2593.3,2592.7,0.76207668]
[1730866641974,4.74369588,2593.3,2592.7,0.76207668]
[1730866642588,4.74369588,2593.3,2592.7,4.61903668]
[1730866642899,4.74369588,2593.3,2592.7,0.76207668]
[1730866643483,8.59991588,2593.3,2592.7,0.76207668]
[1730866643685,4.74369588,2593.3,2592.7,0.76207668]
[1730866643888,0.51466447,2593.2,2592.7,0.76207668]
[1730866644085,3.8564,2593.1,2592.7,0.76207668]
[1730866644288,3.85677,2592.9,2592.2,4.57962544]
[1730866644713,3.85677,2592.9,2592.3,0.7634]
[1730866645084,0.91548644,2593.2,2592.4,0.7634]
[1730866645300,3.85619,2593.3,2592.4,0.7634]
[1730866645500,0.40294881,2593.4,2592.6,8.43666544]
[1730866645742,3.8561,2593.3,2592.8,0.7634]
[1730866646042,0.40294881,2593.4,2592.8,0.7634]
[1730866646186,3.85619,2593.3,2592.8,0.7634]
[1730866646391,0.42591388,2593.2,2592.8,0.7634]
[1730866646834,3.85639,2593.1,2592.6,4.57962544]
[1730866647334,0.7611,2593.1,2592.5,0.7634]
[1730866647495,5.02010881,2593.4,2592.5,0.7634]
[1730866647697,4.35813088,2593.3,2592.6,3.85705]
[1730866647904,0.50201088,2593.3,2592.7,3.85694]
[1730866648138,0.50201088,2593.3,2592.6,3.85711]
[1730866648316,0.50201088,2593.3,2592.7,3.85686]
[1730866648834,0.50201088,2593.3,2592.7,3.85695]
[1730866649129,4.35824088,2593.3,2592.6,3.85711]
[1730866649341,0.50201088,2593.3,2592.7,3.85689]
[1730866649499,3.85651,2593.1,2592.5,0.7634]
[1730866649835,3.85651,2593.1,2592.5,3.85726]
[1730866650135,0.90178776,2593.2,2592.5,3.85718]
[1730866650346,4.75802776,2593.2,2592.6,0.07713459]
[1730866650496,0.86141678,2593.1,2592.5,7.71437]
[1730866650838,0.86141678,2593.1,2592.6,3.93426459]
[1730866651017,0.8037367,2593.4,2592.8,0.81]
[1730866651219,0.40294881,2593.4,2593.0,8.43601544]
[1730866651430,0.7611,2593.8,2593.0,4.57962544]
[1730866651431,3.85572,2593.6,2593.0,4.57962544]
[1730866651590,0.385572,2593.5,2593.0,8.43612544]
[1730866651792,3.85551,2593.7,2593.1,3.85636]
[1730866652099,8.47193,2593.8,2593.1,3.85636]
[1730866652296,0.60400321,2594.3,2593.6,3.85549]
[1730866652494,0.60400321,2594.3,2593.8,4.66534]
[1730866652753,0.7611,2594.7,2594.0,3.85501]
[1730866652917,3.85315,2595.3,2594.0,3.85501]
[1730866652918,0.60373948,2594.9,2594.2,3.85473]
[1730866653115,3.85388,2594.8,2594.2,3.85473]
[1730866653310,0.4014875,2594.8,2594.3,0.81]
[1730866653496,0.7611,2595.1,2594.3,0.81]
[1730866653700,0.461445,2595.0,2594.3,0.81]
[1730866653910,0.461445,2595.0,2594.3,4.6645]
[1730866653911,4.315015,2595.0,2594.3,4.6645]
[1730866654218,0.7611,2595.1,2594.4,3.85434]
[1730866654530,4.25491347,2595.2,2594.3,4.66448]
[1730866654531,3.85357,2595.0,2594.3,4.66448]
[1730866654740,4.25491347,2595.2,2594.5,3.85416]
[1730866655036,4.25491347,2595.2,2594.3,0.81]
[1730866655037,3.85384,2594.9,2594.3,0.81]
[1730866655191,0.385384,2594.8,2594.3,4.66459]
[1730866655395,3.85347,2595.1,2594.4,3.85441]
[1730866655830,3.85347,2595.1,2594.4,3.85445]
[1730866656043,7.70701,2595.1,2594.3,4.66459]
[1730866656222,3.85356,2595.0,2594.3,4.66459]
[1730866656394,3.85347,2595.1,2594.3,0.81]
[1730866656592,3.85379,2594.9,2594.3,0.81]
[1730866656796,3.85398,2594.8,2594.3,0.81]
[1730866657056,3.85412,2594.7,2594.3,0.81]
[1730866657341,3.85402,2594.7,2594.0,3.85495]
[1730866657494,3.85409,2594.7,2593.9,0.81]
[1730866657697,3.85431,2594.5,2593.9,1.81969584]
[1730866657921,3.85461,2594.3,2593.9,0.81]
[1730866658457,3.85431,2594.5,2593.6,3.85555]
[1730866658458,3.85514,2594.0,2593.6,0.81]
[1730866658801,3.85521,2593.9,2593.6,0.81]
[1730866659120,7.7105,2593.9,2593.3,0.81]
[1730866659327,3.85512,2594.0,2593.3,0.81]
[1730866659523,0.385512,2593.9,2593.3,0.81]
[1730866659755,3.85512,2594.0,2593.3,0.81]
[1730866660116,7.71025,2594.0,2593.4,3.85589]
[1730866660312,3.85482,2594.2,2593.4,3.85584]
[1730866660513,3.85482,2594.2,2593.5,3.85564]
[1730866660514,7.70966,2594.2,2593.5,3.85564]
[1730866660843,3.85506,2594.0,2593.4,3.85584]
[1730866661396,4.626048,2594.0,2593.3,0.81]
[1730866661601,3.85523,2593.9,2593.3,0.81]
[1730866662010,0.770988,2594.0,2593.5,3.8557]
[1730866662200,3.85485,2594.2,2593.5,3.8557]
[1730866662404,3.8546,2594.3,2593.4,8.43551544]
[1730866662639,0.7611,2594.4,2593.4,4.57962544]
[1730866662640,3.85513,2594.0,2593.4,4.57962544]
[1730866663053,4.61608,2594.1,2593.0,0.81]
[1730866663202,3.85619,2593.3,2592.7,0.81]
[1730866663400,3.85628,2593.2,2592.7,1.76642653]
[1730866663633,3.85628,2593.2,2592.7,0.81]
[1730866663947,3.85619,2593.3,2592.7,4.66697]
[1730866664153,3.85619,2593.3,2592.7,4.66694]
[1730866664544,3.85619,2593.3,2592.7,4.66698]
[1730866665057,3.85596,2593.4,2592.8,3.8568]
[1730866665256,4.317657,2593.4,2592.8,3.8568]
[1730866665769,3.85619,2593.3,2592.7,0.81]
[1730866665940,7.71241,2593.3,2592.7,0.81]
[1730866666142,3.85619,2593.3,2592.7,0.81]
[1730866666344,0.461697,2593.4,2592.8,4.63779]
[1730866666743,0.461697,2593.4,2592.9,3.85659]
[1730866667598,7.71141,2593.6,2593.0,3.85652]
[1730866667898,3.85594,2593.4,2592.8,4.63784]
[1730866668076,3.85619,2593.3,2592.8,0.7811]
[1730866668395,4.517,2593.5,2592.8,4.6379]
[1730866668689,3.8559,2593.5,2592.8,4.6379]
[1730866668903,3.8559,2593.5,2593.0,3.85652]
[1730866669053,3.8559,2593.5,2592.9,3.85664]
[1730866669386,3.85559,2593.7,2593.0,3.85653]
[1730866669593,3.85565,2593.6,2593.0,3.85649]
[1730866669762,3.85559,2593.7,2593.0,3.85649]
[1730866670088,3.85582,2593.5,2593.0,3.85649]
[1730866670284,3.85582,2593.5,2592.8,8.49454]
[1730866670489,3.85582,2593.5,2592.8,4.63781]
[1730866670685,3.85582,2593.5,2592.8,8.49456]
[1730866670888,3.85601,2593.4,2592.8,4.63781]
[1730866671088,7.71173,2593.5,2592.8,8.49455]
[1730866671394,0.8097289,2593.4,2592.8,4.63781]
[1730866671891,4.6657689,2593.4,2592.8,4.63781]
[1730866672258,0.8097289,2593.4,2592.8,4.63781]
[1730866672586,0.6611,2593.6,2592.8,0.7811]
[1730866672792,0.6611,2593.9,2593.2,0.7811]
[1730866672955,7.71114,2593.7,2593.2,0.7811]
[1730866673151,8.37172,2593.9,2593.2,4.63726]
[1730866673383,8.37172,2593.9,2593.3,3.85598]
[1730866673384,4.51638,2593.9,2593.3,3.85598]
[1730866673778,4.51637,2593.9,2593.3,3.85598]
[1730866674089,3.85536,2593.8,2593.2,4.63733]
[1730866674669,4.51637,2593.9,2593.2,4.63733]
[1730866674670,3.85551,2593.7,2593.2,0.7811]
[1730866675357,3.85646,2593.1,2592.3,0.7811]
[1730866675557,3.85612,2593.3,2592.7,3.85688]
[1730866675859,3.85589,2593.5,2593.0,0.7811]
[1730866676350,0.385551,2593.6,2593.0,0.7811]
[1730866676564,3.85581,2593.5,2593.0,0.7811]
[1730866676766,3.85603,2593.4,2593.0,0.7811]
[1730866677064,3.85603,2593.4,2592.8,0.7811]
[1730866677267,3.85603,2593.4,2592.9,3.85665]
[1730866678468,4.3460561,2593.5,2592.9,3.85665]
[1730866678673,3.85581,2593.5,2592.9,3.8566]
[1730866678898,3.85571,2593.6,2592.9,3.8566]
[1730866679056,3.85541,2593.8,2593.3,0.8272]
[1730866679252,3.85551,2593.7,2593.3,0.8272]
[1730866679493,3.85541,2593.8,2593.3,0.8272]
[1730866680082,3.8559,2593.5,2593.0,4.57962544]
[1730866680394,3.8559,2593.5,2592.9,4.68388]
[1730866681100,3.85595,2593.4,2592.9,0.8272]
[1730866681300,3.85609,2593.3,2592.9,0.8272]
[1730866682373,0.6611,2593.5,2592.9,0.8272]
[1730866682602,7.71262,2593.2,2592.9,0.8272]
[1730866682786,7.71205,2593.4,2592.9,0.8272]
[1730866683001,4.693315,2593.4,2592.9,0.8272]
[1730866683170,3.85654,2593.0,2592.6,0.8272]
[1730866683381,3.85677,2592.9,2592.6,0.8272]
[1730866683586,3.85646,2593.1,2592.6,0.8272]
[1730866684101,3.85639,2593.1,2592.6,0.8272]
[1730866684300,3.85691,2592.8,2592.6,0.8272]
[1730866684480,3.85691,2592.8,2592.2,3.85771]
[1730866684481,0.55,2592.8,2592.2,0.8272]
[1730866684679,3.85751,2592.4,2592.2,0.8272]
[1730866685015,3.85751,2592.4,2591.6,3.85856]
[1730866685016,3.85751,2592.4,2591.8,3.85832]
[1730866685175,3.85751,2592.4,2591.8,4.712728]
[1730866685371,0.95127596,2592.8,2592.1,3.85778]
[1730866685372,4.25818596,2592.8,2592.1,3.85778]
[1730866685619,4.25818596,2592.8,2591.9,0.9043548]
[1730866685620,3.85714,2592.6,2592.0,3.85789]
[1730866685921,3.85714,2592.6,2592.0,3.85791]
[1730866686097,0.6611,2592.9,2592.0,3.85791]
[1730866686098,0.6611,2592.9,2592.0,0.8272]
[1730866686273,3.8569,2592.8,2592.1,4.39855254]
[1730866686472,3.8569,2592.8,2592.1,3.85777]
[1730866686902,3.857,2592.7,2592.1,3.85777]
[1730866687408,3.85714,2592.6,2592.0,0.8272]
[1730866687608,3.85738,2592.5,2592.0,0.8272]
[1730866687996,3.85752,2592.4,2591.8,0.8272]
[1730866688198,3.85752,2592.4,2591.8,4.68551]
[1730866688199,0.77149,2592.4,2591.8,4.68551]
[1730866688538,3.85738,2592.5,2591.8,0.8272]
[1730866688813,3.85773,2592.2,2591.8,0.8272]
[1730866689021,4.51883,2592.2,2591.5,0.8272]
[1730866689225,3.85803,2592.0,2591.5,0.8272]
[1730866689391,3.85818,2591.9,2591.5,0.8272]
[1730866689722,4.51889,2592.2,2591.5,0.8272]
[1730866689929,4.970779,2592.2,2591.5,4.68594]
[1730866690236,3.85811,2592.0,2591.5,0.8272]
[1730866692349,3.85811,2592.0,2591.4,3.85881]
[1730866692350,3.85848,2591.7,2591.1,0.8272]
[1730866692509,3.85894,2591.4,2591.1,0.8272]
[1730866693252,7.71798,2591.4,2590.7,4.68708]
[1730866693579,0.6611,2591.2,2590.4,0.8272]
[1730866693734,4.52043,2591.2,2590.5,3.86017]
[1730866694035,0.6611,2591.5,2591.0,3.85941]
[1730866694240,4.51987,2591.5,2590.9,4.68683]
[1730866694535,4.5195,2591.8,2591.2,3.8592]
[1730866694693,0.6611,2591.8,2591.2,4.631062]
[1730866694899,4.51951,2591.8,2591.2,3.8592]
[1730866695099,0.55,2591.9,2591.3,3.85906]
[1730866695302,4.51919,2592.0,2591.4,3.85883]
[1730866695716,3.85817,2591.9,2591.4,3.85883]
[1730866695939,3.85817,2591.9,2591.3,0.8272]
[1730866695940,0.6611,2592.0,2591.3,0.8272]
[1730866696244,3.85841,2591.8,2591.3,0.8272]
[1730866696751,3.85855,2591.7,2591.3,0.8272]
[1730866697541,0.55,2591.8,2591.3,0.8272]
[1730866698015,3.85855,2591.7,2591.3,0.8272]
[1730866699149,7.71714,2591.7,2591.1,4.68645]
[1730866699360,3.85855,2591.7,2591.1,0.8272]
[1730866699644,3.85885,2591.5,2590.9,0.8272]
[1730866699861,3.85891,2591.4,2590.9,0.8272]
[1730866700144,3.85907,2591.3,2590.9,0.8272]
[1730866700650,3.85945,2591.1,2590.6,0.8272]
[1730866700855,3.85945,2591.1,2590.6,4.68728]
[1730866701039,3.85913,2591.3,2590.7,3.85994]
[1730866701719,3.85913,2591.3,2590.8,3.85971]
[1730866702262,3.85913,2591.3,2590.7,4.328594]
[1730866703047,3.85913,2591.3,2590.8,3.8598]
[1730866703246,3.85913,2591.3,2590.7,4.328594]
[1730866703422,3.85937,2591.1,2590.6,0.8272]
[1730866704513,3.85937,2591.1,2590.4,3.86037]
[1730866704514,3.85974,2590.9,2590.4,3.86037]
[1730866705263,3.86073,2590.2,2589.7,0.8272]
[1730866705465,0.6611,2590.0,2589.3,4.68914]
[1730866705617,1.499395,2590.0,2589.5,3.86174]
[1730866705821,0.6611,2590.0,2589.5,3.86174]
[1730866706358,0.6611,2590.0,2589.3,0.8272]
[1730866706524,0.6611,2590.0,2588.7,4.69003]
[1730866706525,3.86206,2589.3,2588.7,4.69003]
[1730866706725,3.86229,2589.2,2588.7,0.8272]
[1730866706959,3.86206,2589.3,2588.7,0.8272]
[1730866707253,3.86234,2589.1,2588.7,0.8272]
[1730866707418,3.86234,2589.1,2588.5,3.86323]
[1730866707612,3.86234,2589.1,2588.4,0.8272]
[1730866708227,3.863,2588.7,2588.1,0.8272]
[1730866709043,3.86309,2588.6,2588.0,3.86397]
[1730866709254,3.863,2588.7,2588.0,4.714934]
[1730866709424,3.86311,2588.6,2588.0,0.850964]
[1730866709754,3.86311,2588.6,2587.4,8.44447544]
[1730866709755,0.6611,2588.2,2587.4,3.86485]
[1730866709968,0.6611,2588.6,2587.7,3.86443]
[1730866710119,0.6611,2588.6,2588.0,7.72775]
[1730866710319,0.6611,2588.6,2588.1,0.772775]
[1730866710554,0.6611,2588.6,2588.1,3.86382]
[1730866710871,3.86275,2588.9,2587.6,0.7816]
[1730866710872,0.55,2588.9,2588.4,3.86338]
[1730866711019,4.41274,2588.9,2588.2,3.86364]
[1730866711221,4.41274,2588.9,2588.3,3.86342]
[1730866711222,3.86274,2588.9,2588.3,3.86342]
[1730866711455,3.8628,2588.8,2588.2,3.86364]
[1730866711755,3.86274,2588.9,2588.3,4.249864]
[1730866711927,0.6611,2589.0,2588.4,3.86329]
[1730866712131,4.061,2591.3,2588.4,3.86329]
[1730866712132,0.6611,2589.3,2588.4,3.86339]
[1730866712319,0.6611,2589.6,2588.9,3.86264]
[1730866712532,3.86111,2590.0,2589.3,3.86194]
[1730866712533,3.86117,2589.9,2589.3,3.86194]
[1730866712780,3.8613,2589.8,2589.3,3.86194]
[1730866713068,3.8613,2589.8,2589.1,3.8623]
[1730866713069,3.8614,2589.8,2589.1,3.86222]
[1730866713229,4.52224,2590.0,2589.1,3.86222]
[1730866713230,4.52224,2590.0,2589.1,3.86234]
[1730866713432,0.6611,2590.0,2589.4,3.86183]
[1730866713688,1.113281,2590.0,2589.2,3.86213]
[1730866713975,1.113281,2590.0,2588.8,4.64437]
[1730866713976,3.86199,2589.4,2588.8,4.64437]
[1730866714130,3.86185,2589.5,2588.8,4.64437]
[1730866714546,3.86164,2589.6,2588.8,4.64437]
[1730866714860,4.633955,2589.6,2589.0,3.86248]
[1730866715269,0.55,2589.5,2589.0,3.86248]
[1730866715579,0.55,2589.5,2588.8,4.64437]
[1730866715580,0.6611,2589.4,2588.8,3.86272]
[1730866715766,0.60474701,2590.1,2589.1,0.7816]
[1730866715767,1.26584701,2590.1,2589.1,0.7816]
[1730866716068,0.60474701,2590.1,2589.6,3.86148]
[1730866716277,3.86075,2590.2,2589.6,0.772335]
[1730866716478,3.86075,2590.2,2589.4,3.86179]
[1730866716645,1.26575362,2590.4,2589.5,3.86166]
[1730866716831,3.8608,2590.2,2589.6,3.86157]
[1730866717031,3.86088,2590.1,2589.6,3.86157]
[1730866717226,4.38657684,2590.1,2589.6,3.86157]
[1730866717454,4.38657684,2590.1,2589.4,3.86182]
[1730866717659,0.52569684,2590.1,2589.4,3.86182]
[1730866717841,1.26575362,2590.4,2589.9,3.86105]
[1730866718049,0.60465362,2590.4,2590.0,3.86091]
[1730866718468,0.60465362,2590.4,2589.7,4.64297]
[1730866718678,0.60465362,2590.4,2589.9,3.86111]
[1730866719081,1.05114498,2590.4,2589.9,3.86111]
[1730866719861,0.60465362,2590.4,2589.9,3.86111]
[1730866720087,4.46507362,2590.4,2589.8,3.86127]
[1730866720303,3.86026,2590.5,2589.9,3.86106]
[1730866720863,3.86052,2590.4,2589.7,4.64295]